bitfinex/quotes_SOLUSD_20240813
["timestamp","ask_amount","ask_price","bid_price","bid_amount"]
[1723572854075,65.50196,147.94,147.93,0.338]
[1723572854284,65.25098,147.94,147.93,0.338]
[1723572855292,2.99793717,147.97,147.93,0.338]
[1723572855466,20.0,148.09,147.93,0.338]
[1723572855467,6.7573,147.99,147.93,0.338]
[1723572855671,20.0,147.98,147.93,0.338]
[1723572856067,26.7577,147.98,147.93,0.338]
[1723572856265,51.3377,147.98,147.93,0.338]
[1723572856506,44.58,147.98,147.93,0.338]
[1723572856675,6.7582,147.97,147.93,0.338]
[1723572857080,20.0,147.96,147.93,0.338]
[1723572857984,20.0,147.97,147.93,0.338]
[1723572858174,45.0,147.96,147.93,0.338]
[1723572858378,20.0,147.95,147.93,0.338]
[1723572859366,31.3376,147.98,147.93,0.338]
[1723572859367,7.52165333,148.02,147.93,0.338]
[1723572859568,6.7557,148.03,147.93,0.338]
[1723572859976,6.7559,148.02,147.93,0.338]
[1723572860988,6.7554,148.03,147.93,0.338]
[1723572861773,6.7554,148.03,147.94,0.12549]
[1723572862071,24.58,148.06,147.95,24.58]
[1723572862392,6.754,148.06,147.96,0.37647]
[1723572863000,31.334,148.06,147.96,0.37647]
[1723572863696,6.755,148.04,147.96,0.12549]
[1723572863899,51.7554,148.03,147.95,0.12549]
[1723572864104,6.7554,148.03,147.94,50.12549]
[1723572864301,45.0,148.02,147.95,0.12549]
[1723572864481,6.7545,148.05,147.95,1.85349461]
[1723572864807,65.0,148.04,147.95,0.50196]
[1723572865012,65.0,148.04,147.95,30.50196]
[1723572865896,65.0,148.04,147.94,20.0]
[1723572865897,0.12549,148.03,147.94,20.0]
[1723572866097,6.15539,148.01,147.93,0.338]
[1723572866288,51.7568,148.0,147.93,30.338]
[1723572866718,60.1329,148.0,147.93,30.338]
[1723572868601,60.1329,148.0,147.93,0.338]
[1723572868804,84.7129,148.0,147.93,0.338]
[1723572869110,91.4698,148.0,147.93,0.338]
[1723572869701,20.0,147.99,147.93,0.338]
[1723572869897,45.0,147.98,147.93,0.338]
[1723572872310,20.0,147.99,147.93,0.338]
[1723572873593,6.0299,148.01,147.94,0.12549]
[1723572873785,6.0299,148.01,147.94,0.25098]
[1723572874299,16.3956,148.04,147.94,0.25098]
[1723572875016,23.1507,148.04,147.94,0.25098]
[1723572875378,20.0,148.03,147.94,0.25098]
[1723572875578,6.7561,148.02,147.94,30.25098]
[1723572875816,6.7563,148.01,147.94,30.25098]
[1723572876021,6.756,148.02,147.94,30.12549]
[1723572876378,45.0,148.01,147.94,30.12549]
[1723572876583,45.0,148.01,147.94,0.12549]
[1723572876901,26.7554,148.03,147.94,0.12549]
[1723572876902,45.0,148.02,147.94,0.12549]
[1723572879622,45.0,148.02,147.94,1.60250429]
[1723572880211,20.0,148.03,147.95,0.12549]
[1723572880382,20.0,148.03,147.95,0.25098]
[1723572880582,20.0,148.03,147.96,0.12549]
[1723572881301,45.0,148.02,147.94,24.58]
[1723572881515,20.0,148.03,147.94,24.58]
[1723572881721,20.0,148.03,147.95,0.25098]
[1723572882890,26.7556,148.03,147.95,0.25098]
[1723572883727,20.0,148.03,147.95,0.25098]
[1723572885512,26.7554,148.03,147.95,0.25098]
[1723572887626,20.0,148.03,147.93,21.34679]
[1723572887809,69.58,148.02,147.93,20.338]
[1723572888140,9.83,148.01,147.93,0.338]
[1723572888999,9.83,148.01,147.93,20.338]
[1723572889196,9.83,148.01,147.93,30.168]
[1723572889441,45.0,148.02,147.94,0.37647]
[1723572890223,45.0,148.02,147.94,1.72802207]
[1723572890399,45.0,148.02,147.94,0.37647]
[1723572891020,45.0,148.02,147.94,30.37647]
[1723572894116,20.0,148.03,147.96,0.12549]
[1723572894321,20.0,148.03,147.96,0.50196]
[1723572896038,20.0,148.03,147.96,0.12549]
[1723572896242,29.83,148.03,147.95,30.0]
[1723572896746,36.5854,148.03,147.95,30.0]
[1723572896918,20.0,148.03,147.96,0.12549]
[1723572897241,20.0,148.03,147.96,0.50196]
[1723572898339,16.3956,148.04,147.96,11.68312507]
[1723572898513,16.3956,148.04,147.96,10.33196]
[1723572899344,16.3956,148.04,147.96,40.33196]
[1723572899720,26.2256,148.04,147.96,40.33196]
[1723572900335,16.3956,148.04,147.96,10.33196]
[1723572901447,16.3956,148.04,147.98,9.83]
[1723572901654,16.3956,148.04,147.99,0.37647]
[1723572902229,18.9273381,148.08,147.99,0.37647]
[1723572902538,6.7535,148.07,147.99,0.37647]
[1723572902738,6.7535,148.07,147.99,0.25098]
[1723572902934,9.83,148.09,147.99,0.25098]
[1723572902935,6.7532,148.08,147.99,0.25098]
[1723572903135,20.0,148.07,147.99,0.25098]
[1723572903350,45.0,148.06,147.99,0.12549]
[1723572904960,29.83,148.07,147.99,0.12549]
[1723572905131,20.0,148.07,148.0,9.95549]
[1723572905335,9.83,148.11,148.02,9.83]
[1723572905529,9.83,148.11,148.03,1.35023174]
[1723572905839,20.0,148.1,148.03,1.35023174]
[1723572906025,20.0,148.1,148.01,10.08098]
[1723572906226,9.83,148.09,148.0,30.0]
[1723572906529,9.83,148.05,147.96,9.83]
[1723572906734,16.5845,148.05,147.96,9.83]
[1723572907036,9.83,148.03,147.94,9.83]
[1723572907236,45.0,148.02,147.94,9.83]
[1723572908356,45.0,148.02,147.95,20.0]
[1723572908529,9.83,148.03,147.95,20.0]
[1723572908832,9.83,148.03,147.96,0.12549]
[1723572909832,6.7546,148.05,147.96,0.12549]
[1723572910036,45.0,148.04,147.96,0.12549]
[1723572910444,24.57,148.05,147.96,0.12549]
[1723572910646,36.74378611,148.09,147.97,24.57]
[1723572910827,36.74378611,148.09,147.98,45.50196]
[1723572910828,20.0,148.08,147.98,45.50196]
[1723572911154,20.0,148.08,147.99,24.57]
[1723572911360,20.0,148.08,148.0,0.37647]
[1723572912560,26.7527,148.09,148.0,0.37647]
[1723572912730,45.0,148.08,148.0,0.25098]
[1723572912932,20.0,148.07,148.0,0.25098]
[1723572917464,20.0,148.07,148.0,0.90221643]
[1723572917638,20.0,148.09,148.0,0.90221643]
[1723572918049,20.0,148.09,148.01,0.12549]
[1723572918234,18.92246544,148.12,148.01,25.47240019]
[1723572918440,6.7513,148.12,148.02,0.90299427]
[1723572918960,6.7517,148.11,148.02,0.90299427]
[1723572919155,6.7527,148.09,148.02,0.12549]
[1723572919363,6.7534,148.08,147.99,20.0]
[1723572919663,6.7546,148.05,147.94,24.57]
[1723572919837,6.754,148.06,147.94,24.57]
[1723572920042,0.12549,148.04,147.92,24.57]
[1723572920262,6.7558,148.02,147.9,24.57]
[1723572921268,24.57,148.03,147.9,24.57]
[1723572921269,31.3253,148.03,147.9,44.57]
[1723572921469,45.0,148.02,147.9,64.57]
[1723572921957,26.755,148.04,147.92,24.57]
[1723572922158,26.755,148.04,147.95,0.12549]
[1723572922159,20.0,148.04,147.95,0.12549]
[1723572922365,20.0,148.05,147.95,0.12549]
[1723572922572,45.0,148.04,147.95,0.25098]
[1723572922773,20.0,148.03,147.95,0.25098]
[1723572922986,20.0,148.03,147.95,1.60232768]
[1723572923160,20.0,148.03,147.96,0.12549]
[1723572923481,20.0,148.05,147.96,0.37647]
[1723572923788,51.755,148.04,147.94,0.12549]
[1723572924090,20.0,148.03,147.94,0.50196]
[1723572924256,26.7554,148.03,147.94,0.50196]
[1723572924454,6.7558,148.02,147.94,0.25098]
[1723572924680,6.7564,148.01,147.93,20.338]
[1723572924989,51.7567,148.0,147.93,0.338]
[1723572925188,45.0,148.0,147.93,0.338]
[1723572925395,44.57,148.03,147.93,0.338]
[1723572925587,45.0,148.02,147.93,0.338]
[1723572925886,45.0,148.02,147.93,21.68962152]
[1723572926091,20.0,148.03,147.93,21.68962152]
[1723572926296,20.0,148.04,147.94,25.07196]
[1723572926591,26.7551,148.04,147.94,25.07196]
[1723572926763,6.7559,148.02,147.94,0.25098]
[1723572926975,6.7559,148.02,147.94,0.12549]
[1723572927500,51.2935,148.03,147.94,0.25098]
[1723572927668,20.0,148.02,147.95,0.12549]
[1723572928087,20.0,148.02,147.94,0.25098]
[1723572933187,39.593,148.05,147.95,0.25098]
[1723572933386,65.0,148.04,147.96,0.12549]
[1723572934482,71.755,148.04,147.96,0.12549]
[1723572935005,6.7554,148.03,147.95,0.12549]
[1723572935298,6.7554,148.03,147.94,0.50196]
[1723572935671,20.0,148.02,147.93,20.338]
[1723572935892,69.57,148.01,147.93,0.338]
[1723572936079,76.3264,148.01,147.93,0.338]
[1723572936282,91.5787,148.01,147.93,0.338]
[1723572936491,24.57,148.05,147.93,0.338]
[1723572936492,15.6452,148.08,147.96,24.57]
[1723572936702,15.6452,148.08,147.97,21.35122999]
[1723572936994,15.6452,148.08,147.97,20.0]
[1723572937378,22.3983,148.08,147.97,20.0]
[1723572937581,15.6452,148.08,147.98,0.12549]
[1723572937886,20.0,148.07,147.98,0.25098]
[1723572938078,20.0,148.07,147.99,0.12549]
[1723572938267,20.0,148.07,147.99,0.25098]
[1723572939601,20.0,148.07,147.99,1.60209401]
[1723572939775,20.0,148.07,148.0,0.12549]
[1723572939980,20.0,148.07,148.0,0.37647]
[1723572940171,20.0,148.08,148.01,0.12549]
[1723572940469,20.0,148.08,148.01,0.25098]
[1723572942004,20.0,148.08,148.0,0.12549]
[1723572942201,20.0,148.08,147.97,20.0]
[1723572942202,6.7539,148.07,147.97,20.0]
[1723572942390,51.7539,148.07,147.96,20.0]
[1723572942785,45.0,148.07,147.97,1.3512215]
[1723572943194,45.0,148.07,147.96,20.0]
[1723572943408,51.7536,148.07,147.96,20.0]
[1723572943615,6.7546,148.05,147.96,20.0]
[1723572943792,24.57,148.06,147.95,0.8833]
[1723572943793,45.0,148.04,147.95,0.8833]
[1723572944199,45.0,148.05,147.95,0.8833]
[1723572944422,51.7546,148.05,147.95,0.8833]
[1723572944592,6.755,148.04,147.95,0.8833]
[1723572944919,86.8789,148.03,147.93,0.338]
[1723572945232,24.57,148.0,147.93,0.338]
[1723572945390,31.3268,148.0,147.93,0.338]
[1723572945589,65.0,147.99,147.93,0.338]
[1723572947047,71.7572,147.99,147.93,0.338]
[1723572947499,37.8394,147.98,147.93,0.338]
[1723572947694,65.0,147.97,147.93,0.338]
[1723572949420,71.7582,147.97,147.93,0.338]
[1723572949801,65.0,147.97,147.93,0.338]
[1723572951209,20.0,147.97,147.93,0.338]
[1723572953003,31.3267,148.0,147.93,0.338]
[1723572953204,45.0,147.99,147.93,0.338]
[1723572953503,51.7573,147.99,147.93,0.338]
[1723572954134,45.0,147.99,147.93,0.338]
[1723572956237,6.48468,148.01,147.93,0.338]
[1723572956238,6.2337,148.01,147.93,0.338]
[1723572956534,65.0,148.0,147.93,0.338]
[1723572957323,15.1234,148.03,147.94,0.12549]
[1723572957528,6.7566,148.01,147.93,0.338]
[1723572958034,31.3259,148.02,147.93,0.338]
[1723572958208,20.0,148.01,147.93,0.338]
[1723572958749,45.0,148.0,147.93,0.338]
[1723572960027,69.57,148.0,147.93,0.338]
[1723572960246,76.3268,148.0,147.93,0.338]
[1723572961224,24.57,147.98,147.93,0.338]
[1723572961449,45.0,147.97,147.93,0.338]
[1723572964063,45.0,147.98,147.93,0.338]
[1723572964363,51.7572,147.99,147.93,0.338]
[1723572964665,20.0,147.98,147.93,0.338]
[1723572964838,45.0,147.97,147.93,0.338]
[1723572972166,20.0,147.98,147.93,0.338]
[1723572972382,6.7546,148.05,147.94,24.69549]
[1723572972552,31.3241,148.06,147.95,21.59360214]
[1723572972737,24.57,148.06,147.96,1.34255273]
[1723572972942,24.57,148.06,147.95,20.25098]
[1723572973734,15.13957244,148.08,147.93,0.338]
[1723572973735,6.757,148.0,147.93,0.338]
[1723572973972,24.57,148.0,147.93,0.338]
[1723572974158,51.7572,147.99,147.93,0.338]
[1723572974667,45.0,147.99,147.93,0.338]
[1723572975061,20.0,147.98,147.93,0.338]
[1723572975385,45.0,147.97,147.93,0.338]
[1723572976966,24.57,147.94,147.93,0.338]
[1723572977152,96.3294,147.94,147.93,0.338]
[1723572977950,69.57,147.94,147.93,0.338]
[1723572978159,31.3278,147.98,147.93,0.338]
[1723572978341,65.25098,147.97,147.93,0.338]
[1723572978737,20.0,147.97,147.93,0.338]
[1723572979244,20.0,147.99,147.93,0.338]
[1723572979568,26.7575,147.99,147.93,0.338]
[1723572980269,20.0,147.99,147.93,0.338]
[1723572981862,20.0,148.03,147.93,0.338]
[1723572982053,20.0,148.03,147.94,0.12549]
[1723572982244,20.0,148.03,147.94,1.47710429]
[1723572982753,26.7554,148.03,147.94,1.47710429]
[1723572983257,45.0,148.02,147.94,1.47710429]
[1723572987881,51.7554,148.03,147.95,0.12549]
[1723572988077,20.0,148.02,147.95,0.12549]
[1723572988380,26.756,148.02,147.94,0.25098]
[1723572988579,6.7573,147.99,147.93,0.338]
[1723572988884,6.7581,147.97,147.93,0.338]
[1723572989463,6.2653,148.0,147.93,0.338]
[1723572989688,65.0,147.99,147.93,0.338]
[1723572990057,71.7574,147.99,147.93,0.338]
[1723572990253,6.7576,147.98,147.93,0.338]
[1723572990560,71.7573,147.99,147.93,0.338]
[1723572991089,65.0,147.99,147.93,0.338]
[1723572991277,6.7578,147.98,147.93,0.338]
[1723572991464,45.0,147.97,147.93,0.338]
[1723572991663,65.0,147.99,147.93,0.338]
[1723572991881,6.7581,147.97,147.93,0.338]
[1723572992110,6.7577,147.98,147.93,0.338]
[1723572992294,45.0,147.97,147.93,0.338]
[1723572992501,51.7583,147.97,147.93,0.338]
[1723572992980,51.7582,147.97,147.93,0.338]
[1723572993172,6.7588,147.96,147.93,0.338]
[1723572993379,45.0,147.95,147.93,0.338]
[1723572994286,45.12549,147.96,147.93,0.338]
[1723572995185,45.0,147.96,147.93,0.338]
[1723572995479,26.7572,147.99,147.93,0.338]
[1723572995686,45.0,147.98,147.93,0.338]
[1723572996198,20.0,147.97,147.93,0.338]
[1723572996771,45.0,147.96,147.93,0.338]
[1723572998587,51.7586,147.96,147.93,0.338]
[1723572998789,45.0,147.96,147.93,0.338]
[1723573002471,51.7586,147.96,147.93,0.338]
[1723573002671,45.0,147.96,147.93,0.338]
[1723573003395,45.12549,147.97,147.93,0.338]
[1723573003575,45.0,147.97,147.93,0.338]
[1723573003779,15.1044,148.02,147.93,0.338]
[1723573004096,21.8606,148.02,147.93,0.338]
[1723573004282,21.8606,148.02,147.93,1.68974689]
[1723573004483,6.7563,148.01,147.93,0.338]
[1723573005969,45.0,148.0,147.93,0.338]
[1723573006997,51.7568,148.0,147.93,0.338]
[1723573008094,45.0,148.0,147.93,0.338]
[1723573008572,51.7567,148.0,147.93,0.338]
[1723573009275,45.0,148.0,147.93,0.338]
[1723573010384,45.0,148.01,147.93,0.338]
[1723573010605,20.0,148.0,147.93,0.338]
[1723573012084,6.7572,147.99,147.93,0.338]
[1723573012302,51.7577,147.98,147.93,0.338]
[1723573012471,0.12549,147.97,147.93,0.338]
[1723573012809,24.57,147.96,147.93,0.338]
[1723573013092,51.7593,147.95,147.93,0.338]
[1723573013279,45.0,147.95,147.93,0.338]
[1723573014800,41.0261,147.96,147.93,0.338]
[1723573015495,45.0,147.95,147.93,0.338]
[1723573016303,26.7594,147.94,147.93,0.338]
[1723573016487,71.7594,147.94,147.93,0.338]
[1723573016690,71.88489,147.94,147.93,0.338]
[1723573016906,72.01038,147.94,147.93,0.338]
[1723573017301,71.88489,147.94,147.93,0.338]
[1723573017912,71.7594,147.94,147.93,0.338]
[1723573018379,72.01038,147.94,147.93,0.338]
[1723573019005,71.88489,147.94,147.93,0.338]
[1723573020884,96.45489,147.94,147.93,0.338]
[1723573021179,96.83136,147.94,147.93,0.338]
[1723573023183,16.4561,147.96,147.93,0.338]
[1723573023383,23.2149,147.96,147.93,0.338]
[1723573024507,20.0,147.95,147.93,0.338]
[1723573024805,6.7594,147.94,147.93,0.338]
[1723573025107,51.3294,147.94,147.93,0.338]
[1723573025299,96.58038,147.94,147.93,0.338]
[1723573027180,65.0,147.94,147.93,0.338]
[1723573027379,20.0,147.94,147.93,0.338]
[1723573027601,26.7594,147.94,147.93,0.338]
[1723573029299,96.58038,147.94,147.93,0.338]
[1723573029815,96.83136,147.94,147.93,0.338]
[1723573030190,0.12549,147.93,147.81,0.8335754]
[1723573030491,6.7627,147.87,147.81,0.8335754]
[1723573030924,6.7636,147.85,147.81,0.8335754]
[1723573031406,52.01508,147.84,147.81,0.8335754]
[1723573031617,44.57,147.83,147.81,0.8335754]
[1723573031790,51.7649,147.82,147.81,0.8335754]
[1723573031986,65.0,147.82,147.81,0.8335754]
[1723573032211,71.89039,147.82,147.81,0.8335754]
[1723573032484,72.26686,147.82,147.81,0.8335754]
[1723573033194,65.0,147.82,147.81,0.8335754]
[1723573033400,45.0,147.82,147.81,0.8335754]
[1723573033598,65.12549,147.82,147.81,0.8335754]
[1723573033814,71.89039,147.82,147.81,0.8335754]
[1723573034028,72.26686,147.82,147.81,0.8335754]
[1723573034394,65.50196,147.82,147.81,0.8335754]
[1723573035010,65.25098,147.82,147.81,0.8335754]
[1723573035219,65.0,147.82,147.81,0.8335754]
[1723573036430,24.57,147.88,147.81,0.8335754]
[1723573036954,6.763,147.87,147.81,0.8335754]
[1723573037094,6.7632,147.86,147.81,0.8335754]
[1723573037489,6.7626,147.87,147.81,0.8335754]
[1723573038604,0.12549,147.87,147.81,0.8335754]
[1723573038800,24.57,147.86,147.81,0.8335754]
[1723573039005,20.0,147.85,147.81,0.8335754]
[1723573039198,20.12549,147.87,147.81,0.8335754]
[1723573039393,45.0,147.86,147.81,0.8335754]
[1723573039649,31.3314,147.9,147.81,0.8335754]
[1723573039815,45.12549,147.89,147.81,0.8335754]
[1723573040295,6.7624,147.88,147.81,0.8335754]
[1723573040797,6.7627,147.87,147.81,0.8335754]
[1723573041017,6.88779,147.88,147.81,0.8335754]
[1723573041251,65.0,147.87,147.81,0.8335754]
[1723573041543,51.88729,147.89,147.81,0.8335754]
[1723573041544,0.12549,147.89,147.81,0.8335754]
[1723573041749,65.0,147.89,147.81,0.8335754]
[1723573042048,26.7618,147.89,147.81,0.8335754]
[1723573042207,20.0,147.89,147.81,0.8335754]
[1723573043312,45.0,147.88,147.81,0.8335754]
[1723573043927,20.0,147.89,147.81,0.8335754]
[1723573044126,26.7618,147.89,147.81,0.8335754]
[1723573044324,20.0,147.89,147.81,0.8335754]
[1723573044522,6.7632,147.86,147.81,0.8335754]
[1723573044727,6.7628,147.87,147.81,0.8335754]
[1723573044930,31.3323,147.88,147.81,0.8335754]
[1723573045115,45.0,147.87,147.81,0.8335754]
[1723573045334,51.7627,147.87,147.81,0.8335754]
[1723573045837,6.7645,147.83,147.81,0.8335754]
[1723573046015,51.7649,147.82,147.81,0.8335754]
[1723573046333,45.0,147.82,147.81,0.8335754]
[1723573046717,31.70997,147.86,147.81,0.8335754]
[1723573046912,24.69549,147.84,147.81,0.8335754]
[1723573047138,65.12549,147.83,147.81,0.8335754]
[1723573047750,31.71137,147.82,147.81,0.8335754]
[1723573048041,31.83686,147.82,147.81,0.8335754]
[1723573048333,89.57,147.82,147.81,0.8335754]
[1723573049066,96.3349,147.82,147.81,0.8335754]
[1723573049932,89.57,147.82,147.81,0.8335754]
[1723573050130,96.3349,147.82,147.81,0.8335754]
[1723573050346,89.57,147.82,147.81,0.8335754]
[1723573050728,71.7649,147.82,147.81,0.8335754]
[1723573051438,65.0,147.82,147.81,0.8335754]
[1723573051820,71.89039,147.82,147.81,0.8335754]
[1723573052024,96.58588,147.82,147.81,0.8335754]
[1723573052224,96.83686,147.82,147.81,0.8335754]
[1723573053048,96.83686,147.82,147.71,20.8833]
[1723573053049,0.12549,147.81,147.71,20.8833]
[1723573053353,0.12549,147.78,147.67,0.8833]
[1723573053641,7.01788,147.78,147.67,0.8833]
[1723573053846,6.7674,147.77,147.67,0.8833]
[1723573054023,45.0,147.76,147.67,0.8833]
[1723573054224,51.7677,147.76,147.67,0.8833]
[1723573054447,24.57,147.75,147.66,0.8335754]
[1723573054633,31.34,147.71,147.66,0.8335754]
[1723573054832,45.0,147.7,147.66,0.8335754]
[1723573056335,51.7705,147.7,147.66,0.8335754]
[1723573056627,26.89639,147.69,147.66,0.8335754]
[1723573056846,45.0,147.68,147.66,0.8335754]
[1723573057946,20.0,147.69,147.66,0.8335754]
[1723573058124,20.0,147.7,147.66,0.8335754]
[1723573058532,20.0,147.72,147.66,0.8335754]
[1723573059535,45.0,147.71,147.66,0.8335754]
[1723573059861,20.0,147.7,147.66,0.8335754]
[1723573060637,45.0,147.69,147.66,0.8335754]
[1723573061251,45.0,147.7,147.66,0.8335754]
[1723573063028,51.7708,147.7,147.66,0.8335754]
[1723573063339,51.46669,147.69,147.66,0.8335754]
[1723573063534,45.0,147.68,147.66,0.3335754]
[1723573065453,32.9138,147.73,147.66,0.3335754]
[1723573065454,40.5604,147.73,147.66,0.3335754]
[1723573065761,20.12549,147.72,147.66,0.3335754]
[1723573066070,26.7697,147.72,147.66,0.3335754]
[1723573066354,6.7708,147.7,147.66,0.3335754]
[1723573066533,24.57,147.71,147.66,0.3335754]
[1723573066740,20.0,147.7,147.66,0.3335754]
[1723573068234,20.0,147.71,147.66,0.3335754]
[1723573068435,45.0,147.7,147.66,0.3335754]
[1723573070856,6.7716,147.68,147.66,0.3335754]
[1723573071159,45.0,147.67,147.66,0.3335754]
[1723573072243,93.11798,147.67,147.66,0.3335754]
[1723573072435,93.36896,147.67,147.66,0.3335754]
[1723573072640,113.36896,147.67,147.66,0.3335754]
[1723573073345,113.36896,147.67,147.54,7.04962194]
[1723573073346,0.12549,147.66,147.54,7.04962194]
[1723573073540,0.12549,147.63,147.53,0.8833]
[1723573073739,65.37647,147.63,147.53,0.8833]
[1723573073967,71.47107,147.63,147.53,0.8833]
[1723573074177,71.0946,147.63,147.53,25.4533]
[1723573074486,65.0,147.63,147.53,25.4533]
[1723573074949,65.0,147.63,147.54,0.12549]
[1723573075259,65.0,147.63,147.54,0.50196]
[1723573075681,65.0,147.63,147.54,20.50196]
[1723573075971,65.0,147.63,147.54,20.37647]
[1723573076173,65.0,147.63,147.54,20.25098]
[1723573077441,20.0,147.63,147.55,24.82098]
[1723573077637,20.0,147.63,147.56,0.25098]
[1723573077851,20.0,147.66,147.56,0.25098]
[1723573078061,20.0,147.66,147.55,24.82098]
[1723573078062,6.89829,147.65,147.55,24.82098]
[1723573078247,20.0,147.64,147.56,0.25098]
[1723573078737,6.7726,147.66,147.56,0.25098]
[1723573078738,20.0,147.65,147.56,0.25098]
[1723573078943,45.0,147.64,147.56,0.25098]
[1723573079240,22.6198,147.67,147.57,24.82098]
[1723573079436,22.6198,147.67,147.6,0.12549]
[1723573079672,22.6198,147.67,147.59,24.57]
[1723573079967,22.6198,147.67,147.6,0.12549]
[1723573080268,47.3565,147.72,147.6,0.12549]
[1723573080468,54.1264,147.72,147.61,24.69549]
[1723573080662,22.7865,147.72,147.62,0.37647]
[1723573080861,29.5561,147.72,147.62,0.37647]
[1723573081266,6.7701,147.71,147.62,0.25098]
[1723573081467,6.7705,147.7,147.6,0.8833]
[1723573081659,6.89549,147.71,147.61,0.25098]
[1723573081863,54.1261,147.72,147.62,0.12549]
[1723573082064,29.5561,147.72,147.62,0.25098]
[1723573082256,26.7701,147.71,147.63,0.25098]
[1723573082454,20.0,147.71,147.63,0.25098]
[1723573082763,20.0,147.71,147.62,20.0]
[1723573083175,6.7709,147.69,147.6,0.8833]
[1723573083361,6.7704,147.7,147.61,0.25098]
[1723573083566,20.0,147.69,147.62,0.12549]
[1723573083768,26.7701,147.71,147.61,0.25098]
[1723573083970,6.7709,147.69,147.61,0.25098]
[1723573084470,20.0,147.71,147.61,0.25098]
[1723573084676,45.0,147.7,147.61,0.25098]
[1723573084980,20.0,147.71,147.61,24.82098]
[1723573085169,26.77,147.71,147.62,20.0]
[1723573085348,20.0,147.71,147.63,0.25098]
[1723573086577,22.7865,147.72,147.64,0.12549]
[1723573086754,22.7865,147.72,147.64,20.25098]
[1723573086953,22.7865,147.72,147.65,0.25098]
[1723573088146,22.7865,147.72,147.64,20.0]
[1723573088346,22.7865,147.72,147.61,0.12549]
[1723573088347,71.77,147.71,147.61,0.12549]
[1723573088871,6.7709,147.7,147.61,0.12549]
[1723573089078,51.7713,147.69,147.6,20.0]
[1723573089284,26.7714,147.68,147.58,20.0]
[1723573089659,45.0,147.67,147.58,20.0]
[1723573090175,20.0,147.68,147.58,20.0]
[1723573090690,20.0,147.69,147.62,0.12549]
[1723573090857,6.7696,147.72,147.62,20.50196]
[1723573091186,20.0,147.71,147.62,20.50196]
[1723573091564,20.0,147.72,147.62,20.50196]
[1723573091783,20.0,147.73,147.64,0.12549]
[1723573091985,26.7692,147.73,147.64,0.50196]
[1723573092275,20.0,147.73,147.64,0.50196]
[1723573092455,26.7692,147.73,147.64,0.50196]
[1723573092657,6.7696,147.72,147.63,0.12549]
[1723573092995,26.77,147.71,147.63,0.25098]
[1723573093158,20.0,147.71,147.62,20.0]
[1723573093363,20.0,147.71,147.61,0.37647]
[1723573093574,20.0,147.71,147.62,0.12549]
[1723573093872,26.77,147.71,147.62,20.12549]
[1723573094075,45.0,147.7,147.62,0.12549]
[1723573094273,45.0,147.7,147.62,0.25098]